bitfinex-derivatives/quotes_BTCF0:USTF0_20241117
["timestamp","ask_amount","ask_price","bid_price","bid_amount"]
[1731812627861,0.055437,90143.0,90140.0,0.055438]
[1731812628562,0.0326,90147.0,90140.0,0.055438]
[1731812628757,0.055438,90141.0,90138.0,0.00011582]
[1731812629359,0.055438,90141.0,90138.0,0.05555482]
[1731812629762,0.055438,90141.0,90139.0,0.055439]
[1731812630352,0.055438,90141.0,90135.0,0.11844921]
[1731812630757,0.0321,90145.0,90136.0,0.11093854]
[1731812630958,0.055439,90139.0,90135.0,0.11844921]
[1731812631358,0.055439,90139.0,90136.0,0.00011459]
[1731812631557,0.3608,90148.0,90144.0,0.055435]
[1731812631758,0.3608,90148.0,90145.0,0.11844921]
[1731812632373,0.3608,90148.0,90146.0,0.055435]
[1731812633750,0.3608,90148.0,90145.0,0.11764715]
[1731812633955,0.3608,90153.0,90150.0,0.055432]
[1731812634164,0.055425,90161.0,90150.0,0.055432]
[1731812634462,0.13277984,90169.0,90150.0,0.055432]
[1731812634650,0.055422,90166.0,90150.0,0.16635761]
[1731812634855,0.0661,90170.0,90165.0,0.055422]
[1731812634856,0.055421,90169.0,90165.0,0.055422]
[1731812635263,0.055421,90168.0,90165.0,0.055422]
[1731812635671,0.055421,90168.0,90163.0,0.11844921]
[1731812635672,0.08704555,90170.0,90163.0,0.11844921]
[1731812635870,0.055423,90165.0,90163.0,0.11844921]
[1731812636668,0.055428,90158.0,90156.0,0.11844921]
[1731812637566,0.03288024,90170.0,90156.0,0.11844921]
[1731812637751,0.055421,90168.0,90166.0,0.11844921]
[1731812640373,8.024e-05,90170.0,90159.0,0.11844921]
[1731812640571,8.024e-05,90170.0,90159.0,0.17387521]
[1731812641772,8.024e-05,90170.0,90159.0,0.11844921]
[1731812641773,0.055426,90161.0,90159.0,0.11844921]
[1731812642783,8.024e-05,90170.0,90159.0,0.11844921]
[1731812642965,0.055424,90164.0,90162.0,0.055425]
[1731812643170,0.055421,90168.0,90166.0,0.055422]
[1731812643679,0.055425,90162.0,90160.0,0.055426]
[1731812645559,8.024e-05,90170.0,90159.0,0.11844921]
[1731812645766,0.055431,90153.0,90151.0,0.0308]
[1731812647172,0.055431,90153.0,90148.0,0.055433]
[1731812647173,0.055432,90150.0,90149.0,0.05479247]
[1731812647375,0.3608,90164.0,90145.0,0.055435]
[1731812647376,0.055433,90149.0,90145.0,0.055435]
[1731812647583,0.13277984,90154.0,90145.0,0.055435]
[1731812647772,0.055434,90147.0,90145.0,0.16636184]
[1731812648581,0.055434,90147.0,90144.0,0.17430637]
[1731812648582,0.055435,90145.0,90144.0,0.17430637]
[1731812648766,0.13277984,90150.0,90148.0,0.055433]
[1731812648972,0.13277984,90152.0,90150.0,0.055432]
[1731812649282,0.13277984,90156.0,90152.0,0.055431]
[1731812649491,0.13277984,90155.0,90153.0,0.01370224]
[1731812649667,0.0627,90168.0,90151.0,0.22938036]
[1731812649668,0.13277984,90158.0,90151.0,0.11844921]
[1731812649866,0.13277984,90158.0,90157.0,0.055428]
[1731812650075,0.13277984,90159.0,90157.0,0.055428]
[1731812650376,0.05390403,90158.0,90157.0,0.055428]
[1731812650565,0.25282024,90158.0,90157.0,0.06925376]
[1731812650878,0.05390403,90158.0,90157.0,0.06925376]
[1731812651065,0.05390403,90158.0,90151.0,0.11844921]
[1731812651265,0.19891746,90156.0,90152.0,0.01382685]
[1731812651461,0.05390403,90155.0,90153.0,0.01382685]
[1731812651682,0.055428,90157.0,90154.0,0.01382685]
[1731812651886,0.05390528,90156.0,90153.0,0.05543]
[1731812652176,0.05390528,90156.0,90151.0,0.11844921]
[1731812652177,0.23403918,90155.0,90152.0,0.11092131]
[1731812652378,0.05390528,90154.0,90153.0,0.01366275]
[1731812653074,0.05390528,90154.0,90152.0,0.055431]
[1731812653281,0.19916352,90153.0,90152.0,0.055431]
[1731812653474,0.19916352,90153.0,90152.0,0.16635292]
[1731812654579,0.10933658,90154.0,90152.0,0.11092192]
[1731812654785,0.05390658,90153.0,90152.0,0.11092192]
[1731812655183,0.19917971,90153.0,90152.0,0.11092192]
[1731812655384,0.25309507,90153.0,90152.0,0.11092192]
[1731812655778,0.2530942,90153.0,90152.0,0.11092192]
[1731812656271,0.23442428,90153.0,90152.0,0.01361037]
[1731812656579,0.23442428,90153.0,90142.0,0.055437]
[1731812656784,0.19921797,90143.0,90142.0,0.055437]
[1731812656984,0.19921797,90143.0,90142.0,0.16636015]
[1731812657181,0.05390658,90143.0,90142.0,0.16636015]
[1731812657483,0.1660141,90143.0,90142.0,0.16636015]
[1731812657988,0.16600764,90144.0,90142.0,0.51263514]
[1731812658184,0.13280096,90146.0,90143.0,0.37427499]
[1731812658381,0.13280096,90148.0,90145.0,0.11844921]
[1731812658593,0.13280096,90148.0,90147.0,0.11844921]
[1731812659085,0.13280096,90149.0,90147.0,0.1873582]
[1731812659276,0.13280096,90149.0,90148.0,0.01347499]
[1731812659483,0.13280096,90150.0,90149.0,0.055433]
[1731812659684,0.13280096,90150.0,90149.0,0.1873572]
[1731812660076,0.13280096,90150.0,90149.0,0.29828527]
[1731812660392,0.16600764,90155.0,90153.0,0.05543]
[1731812660684,0.16600764,90156.0,90154.0,0.01347499]
[1731812660993,0.16600764,90156.0,90155.0,0.01347499]
[1731812661490,0.19921797,90161.0,90159.0,0.055427]
[1731812661691,0.05390459,90160.0,90159.0,0.055427]
[1731812661885,0.05390459,90160.0,90159.0,0.06888513]
[1731812662079,0.25312256,90162.0,90159.0,0.06888513]
[1731812662288,0.25312256,90161.0,90160.0,0.06888413]
[1731812662487,0.05390459,90161.0,90160.0,0.06888413]
[1731812663199,0.05390459,90162.0,90160.0,0.06888413]
[1731812663379,0.05390459,90161.0,90160.0,0.055426]
[1731812663688,0.16614498,90161.0,90160.0,0.06886144]
[1731812663993,0.05390245,90161.0,90160.0,0.06886144]
[1731812664193,0.05390271,90161.0,90160.0,0.06886144]
[1731812664378,0.055424,90163.0,90160.0,0.06886144]
[1731812664577,0.05390302,90162.0,90161.0,0.01343544]
[1731812664786,0.05390302,90162.0,90160.0,0.055426]
[1731812664787,0.16615784,90162.0,90160.0,0.055426]
[1731812665286,0.055424,90163.0,90160.0,0.055426]
[1731812665488,0.16614899,90162.0,90161.0,0.055425]
[1731812665691,0.16614899,90163.0,90161.0,0.055425]
[1731812666080,0.16614899,90162.0,90161.0,0.055425]
[1731812666280,0.16614899,90163.0,90161.0,0.055425]
[1731812666481,0.0309,90168.0,90163.0,0.055424]
[1731812666482,0.16614899,90164.0,90163.0,0.055424]
[1731812666882,0.16614899,90165.0,90163.0,0.055424]
[1731812667093,0.16614899,90164.0,90163.0,0.055424]
[1731812667394,0.16614899,90166.0,90158.0,0.11844921]
[1731812667577,0.16614899,90167.0,90163.0,0.11091147]
[1731812667784,0.055423,90165.0,90164.0,0.01340265]
[1731812667983,0.16614899,90167.0,90164.0,0.01340265]
[1731812668183,0.16614899,90167.0,90165.0,0.06882565]
[1731812668485,0.16614899,90167.0,90166.0,0.01340265]
[1731812668794,0.16614899,90168.0,90166.0,0.01340265]
[1731812668991,0.22164923,90170.0,90167.0,0.01340265]
[1731812669294,0.22164923,90170.0,90168.0,0.01340265]
[1731812669485,0.05550024,90170.0,90169.0,0.01340265]
[1731812669798,0.22164923,90170.0,90169.0,0.01340265]
[1731812669991,0.05550024,90170.0,90169.0,0.01340265]
[1731812670793,0.05550024,90170.0,90169.0,0.01338874]
[1731812670794,0.22164923,90170.0,90169.0,0.01338874]
[1731812670996,0.05550024,90170.0,90169.0,0.01338874]
[1731812672898,0.05550024,90170.0,90167.0,0.10960453]
[1731812673199,0.05550024,90170.0,90168.0,0.01332888]
[1731812673499,0.05550024,90170.0,90169.0,0.01332888]
[1731812673692,0.05550024,90170.0,90167.0,0.10960453]
[1731812673996,0.05550024,90170.0,90168.0,0.01336744]
[1731812674198,0.05550024,90170.0,90167.0,0.10960453]
[1731812674491,0.05550024,90170.0,90168.0,0.01336606]
[1731812674702,0.05550024,90170.0,90167.0,0.10960453]
[1731812675001,0.05550024,90170.0,90168.0,0.01338863]
[1731812675192,0.05550024,90170.0,90167.0,0.10960453]
[1731812675193,0.05550024,90170.0,90169.0,0.01338863]
[1731812676882,0.05554818,90170.0,90169.0,0.01338863]
[1731812677079,0.05554818,90170.0,90169.0,0.06880863]
[1731812680499,0.05554818,90170.0,90169.0,0.01338863]
[1731812682187,0.055425,90161.0,90158.0,0.19605263]
[1731812682495,0.00012818,90170.0,90159.0,0.12430786]
[1731812682496,0.055425,90162.0,90159.0,0.12430786]
[1731812682794,0.055425,90162.0,90160.0,0.06883162]
[1731812683100,0.055425,90162.0,90161.0,0.06883062]
[1731812683690,0.055425,90162.0,90161.0,0.01340562]
[1731812683993,0.055425,90162.0,90146.0,0.001]
[1731812683994,0.055434,90147.0,90146.0,0.001]
[1731812684189,0.055434,90147.0,90146.0,0.01334486]
[1731812684799,0.055435,90145.0,90144.0,0.00166389]
[1731812684982,0.055435,90145.0,90144.0,0.01505056]
[1731812686298,0.18826258,90145.0,90144.0,0.00166389]
[1731812686597,0.055435,90145.0,90144.0,0.00166389]
[1731812689201,0.055435,90145.0,90136.0,0.00011459]
[1731812689202,0.05544,90137.0,90136.0,0.00011459]
[1731812689808,0.08764,90137.0,90136.0,0.00011459]
[1731812690295,0.20608921,90137.0,90136.0,0.00011459]
[1731812691395,0.08764,90137.0,90136.0,0.00011459]
[1731812694391,0.20608921,90137.0,90136.0,0.00011459]
[1731812694999,0.20608921,90137.0,90124.0,0.00065]
[1731812695000,0.055447,90125.0,90124.0,0.00065]
[1731812695300,0.17389621,90125.0,90124.0,0.00065]
[1731812696108,0.055447,90125.0,90124.0,0.00065]
[1731812696306,0.155167,90125.0,90124.0,0.00065]
[1731812696598,0.055447,90125.0,90124.0,0.00065]
[1731812696804,0.155167,90125.0,90124.0,0.00065]
[1731812697302,0.055447,90125.0,90124.0,0.00065]
[1731812702800,0.36140001,90137.0,90124.0,0.00065]
[1731812703007,0.055441,90136.0,90134.0,0.055442]
[1731812703809,0.3608,90137.0,90135.0,0.055441]
[1731812704198,0.055435,90145.0,90143.0,0.055436]
[1731812704504,0.055431,90152.0,90149.0,0.055433]
[1731812704703,0.055431,90152.0,90150.0,0.0319]
[1731812706819,0.055431,90152.0,90150.0,0.087332]
[1731812706999,0.09976,90163.0,90150.0,0.0319]
[1731812707195,0.055428,90157.0,90152.0,0.055431]
[1731812707612,0.11844921,90164.0,90152.0,0.055431]
[1731812707918,0.055429,90155.0,90152.0,0.055431]
[1731812708417,0.055429,90155.0,90150.0,0.0319]
[1731812708418,0.00012818,90170.0,90166.0,0.055422]
[1731812708600,0.00012818,90170.0,90168.0,0.055421]
[1731812709108,0.00012818,90170.0,90169.0,0.00014319]
[1731812709294,0.00012818,90170.0,90169.0,0.03274319]
[1731812715913,0.00012818,90170.0,90169.0,0.14364543]
[1731812716117,0.00012818,90170.0,90169.0,0.49001005]
[1731812716319,0.15454482,90191.0,90176.0,0.055416]
[1731812716524,0.055414,90180.0,90176.0,0.055416]
[1731812716723,0.11844921,90190.0,90169.0,0.08816319]
[1731812716925,0.11844921,90190.0,90172.0,0.055418]
[1731812716926,0.055416,90176.0,90172.0,0.055418]
[1731812717221,0.11844921,90190.0,90169.0,0.03274319]
[1731812717222,8.427e-05,90187.0,90170.0,0.11089179]
[1731812717421,0.05542,90171.0,90169.0,0.03274319]
[1731812717624,0.05542,90171.0,90169.0,0.00014319]
[1731812718822,0.0926,90170.0,90169.0,5.53e-06]
[1731812719013,0.0926,90170.0,90150.0,0.055432]
[1731812719213,0.055433,90150.0,90148.0,0.0562206]
[1731812719417,0.3608,90162.0,90145.0,0.11844921]
[1731812719925,0.055431,90152.0,90151.0,0.055431]
[1731812720111,0.055431,90152.0,90151.0,0.05554352]
[1731812721523,0.09948,90169.0,90151.0,0.00011252]
[1731812721713,0.055426,90160.0,90155.0,0.055429]
[1731812721914,0.055427,90158.0,90155.0,0.055429]
[1731812722727,0.055429,90155.0,90151.0,0.00011252]
[1731812722925,0.055429,90155.0,90151.0,0.05554352]
[1731812723430,0.055429,90155.0,90151.0,0.00011252]
[1731812723723,0.09948,90168.0,90151.0,0.00011252]
[1731812724026,0.09948,90168.0,90154.0,0.055429]
[1731812724422,0.09948,90168.0,90151.0,0.00011252]
[1731812724423,0.0926,90170.0,90151.0,0.00011252]
[1731812724631,0.055424,90164.0,90160.0,0.055426]
[1731812725021,0.055424,90164.0,90162.0,0.055424]
[1731812725825,0.055415,90178.0,90174.0,0.055417]
[1731812726327,0.055416,90177.0,90174.0,0.055417]
[1731812726528,0.10114384,90190.0,90174.0,0.055417]
[1731812726529,0.13233513,90221.0,90176.0,0.79429662]
[1731812726732,0.055393,90214.0,90199.0,0.17385121]
[1731812726931,0.055393,90214.0,90199.0,0.60593121]
[1731812727334,0.055393,90214.0,90199.0,0.27333121]
[1731812727522,0.055393,90214.0,90199.0,0.38433579]
[1731812728224,0.00011601,90218.0,90199.0,0.66153379]
[1731812728432,0.00011601,90218.0,90210.0,0.055395]
[1731812729338,0.00011601,90218.0,90217.0,0.055391]
[1731812729523,0.00011601,90218.0,90214.0,0.055393]
[1731812730142,0.00011601,90218.0,90199.0,0.46040509]
[1731812730143,0.00011601,90218.0,90216.0,0.055391]
[1731812731825,0.00011601,90218.0,90217.0,0.09948]
[1731812732037,0.00011601,90218.0,90217.0,0.21032385]
[1731812732729,0.00011601,90218.0,90217.0,0.54284385]
[1731812733145,0.00011601,90218.0,90217.0,0.21032385]
[1731812733345,0.00011601,90218.0,90217.0,0.54284385]
[1731812733529,0.4245,90245.0,90217.0,0.54284385]
[1731812733828,0.4245,90245.0,90232.0,0.11844921]
[1731812733829,0.055378,90239.0,90232.0,0.11844921]
[1731812734029,0.004,90244.0,90232.0,0.11844921]
[1731812734532,0.055378,90238.0,90232.0,0.11844921]
[1731812735029,0.05538,90235.0,90232.0,0.11844921]
[1731812735425,0.00012171,90243.0,90223.0,0.09948]
[1731812735426,0.3608,90236.0,90223.0,0.09948]
[1731812735733,0.055384,90229.0,90226.0,0.11082174]
[1731812736126,0.055386,90225.0,90223.0,0.05572279]
[1731812736432,0.055387,90224.0,90218.0,0.11844921]
[1731812736620,0.3608,90237.0,90218.0,0.11844921]
[1731812736816,0.3608,90227.0,90219.0,0.11082849]
[1731812737022,0.055389,90220.0,90215.0,0.3608]
[1731812737233,0.055391,90217.0,90215.0,0.3608]
[1731812738531,0.055384,90228.0,90222.0,0.055388]
[1731812738840,0.055387,90225.0,90222.0,0.055388]
[1731812739143,0.0332,90235.0,90220.0,0.11844921]
[1731812739325,0.055388,90222.0,90220.0,0.11844921]
[1731812741123,0.055392,90216.0,90215.0,0.3608]
[1731812741626,0.13233513,90251.0,90215.0,0.3608]
[1731812741627,0.055372,90248.0,90235.0,0.05538]
[1731812741830,0.055372,90248.0,90216.0,0.055391]
[1731812741831,0.055378,90238.0,90230.0,0.11844921]
[1731812742127,0.055381,90234.0,90229.0,0.09924]
[1731812742935,0.055377,90241.0,90229.0,0.09924]
[1731812743140,0.0309,90247.0,90229.0,0.09924]
[1731812743336,0.0309,90247.0,90233.0,0.055381]
[1731812743833,0.055377,90240.0,90233.0,0.055381]
[1731812744032,0.055377,90240.0,90230.0,0.11844921]
[1731812744033,0.0309,90247.0,90230.0,0.11844921]
[1731812744239,0.055378,90239.0,90231.0,0.055382]
[1731812744539,0.055378,90239.0,90231.0,0.16620005]
[1731812744726,0.0309,90247.0,90215.0,0.0052]
[1731812744727,0.3608,90232.0,90215.0,0.0052]
[1731812745043,0.055387,90224.0,90216.0,0.055391]
[1731812745234,0.3608,90232.0,90216.0,0.055391]
[1731812745431,0.055388,90222.0,90216.0,0.055391]
[1731812746233,0.055388,90222.0,90214.0,0.3608]
[1731812746536,0.09924,90238.0,90214.0,0.3608]
[1731812746537,0.00012171,90243.0,90233.0,0.055381]
[1731812746940,0.055379,90237.0,90233.0,0.055381]
[1731812747438,0.00012171,90243.0,90228.0,0.11844921]
[1731812747641,0.00012171,90243.0,90241.0,0.055376]
[1731812749934,0.05549671,90243.0,90241.0,0.055376]
[1731812750432,0.055376,90241.0,90236.0,0.17382821]
[1731812750629,0.055376,90241.0,90238.0,0.055378]
[1731812752650,0.00012171,90243.0,90236.0,0.17318237]
[1731812752845,0.055379,90238.0,90236.0,0.17318237]
[1731812753143,0.00012171,90243.0,90240.0,0.055377]
[1731812753339,0.05549671,90243.0,90241.0,0.055376]
[1731812753536,0.055376,90242.0,90236.0,0.22856137]
[1731812753753,0.055376,90242.0,90239.0,0.055377]
[1731812753937,0.13233513,90258.0,90239.0,0.055377]
[1731812753938,0.055361,90267.0,90256.0,0.055367]
[1731812754138,0.055362,90264.0,90259.0,0.11844921]
[1731812754551,0.0305,90266.0,90259.0,0.11844921]
[1731812754853,0.055365,90260.0,90253.0,0.055369]
[1731812755043,0.0305,90266.0,90257.0,0.055366]
[1731812755245,0.085861,90266.0,90258.0,0.055366]
[1731812755632,0.085861,90266.0,90251.0,0.11844921]
[1731812755633,0.055362,90265.0,90251.0,0.11844921]
[1731812755838,0.13233513,90263.0,90259.0,0.055365]
[1731812756055,0.16541892,90269.0,90252.0,0.3608]
[1731812756056,0.13233513,90264.0,90262.0,0.11844921]
[1731812756248,0.00010285,90270.0,90269.0,0.055359]
[1731812756759,0.00010285,90270.0,90262.0,0.48040921]
[1731812756760,0.00010285,90270.0,90262.0,0.11960921]
[1731812757050,0.055359,90269.0,90259.0,0.055365]
[1731812757257,0.00010285,90270.0,90262.0,0.11844921]
[1731812757437,0.00010285,90270.0,90267.0,0.05536]
[1731812757633,0.00010285,90270.0,90268.0,0.055359]
[1731812757634,0.13243798,90270.0,90268.0,0.055359]
[1731812757847,0.00010285,90270.0,90268.0,0.055359]
[1731812758248,0.00010285,90270.0,90263.0,0.11077938]
[1731812758249,0.00010285,90270.0,90262.0,0.17381221]
[1731812758442,0.00010285,90270.0,90263.0,0.055362]
[1731812758637,0.00010285,90270.0,90265.0,0.055361]
[1731812758851,0.00010285,90270.0,90266.0,0.05536]
[1731812759039,0.00010285,90270.0,90262.0,0.17431318]
[1731812759238,0.00010285,90270.0,90269.0,0.055359]
[1731812760350,0.00010285,90270.0,90262.0,0.17431318]
[1731812760351,0.00010285,90270.0,90265.0,0.0992]
[1731812760852,0.05536,90268.0,90262.0,0.22967618]
[1731812761652,0.055362,90264.0,90258.0,0.0992]
[1731812761836,0.0324,90269.0,90255.0,0.02215725]
[1731812762036,0.0324,90269.0,90256.0,0.055367]
[1731812762350,0.13233513,90262.0,90251.0,0.05537]
[1731812762650,0.055368,90254.0,90251.0,0.05537]
[1731812762850,0.13233513,90260.0,90258.0,0.055365]
[1731812763040,0.0332,90261.0,90260.0,0.11844921]
[1731812763545,0.0332,90261.0,90259.0,0.055365]
[1731812763747,0.0332,90261.0,90253.0,0.11844921]
[1731812764048,0.055369,90254.0,90252.0,0.055369]
[1731812764249,0.055369,90253.0,90247.0,0.055372]
[1731812764647,0.3608,90255.0,90243.0,0.00166171]
[1731812764852,0.055372,90248.0,90243.0,0.0559675]
[1731812765048,0.055372,90248.0,90245.0,0.055374]
[1731812765750,0.3608,90255.0,90243.0,0.00166171]
[1731812765751,0.055373,90246.0,90243.0,0.00166171]
[1731812765953,0.3608,90255.0,90243.0,0.00166171]
[1731812765954,0.055374,90245.0,90243.0,0.00166171]
[1731812767547,0.0328,90244.0,90243.0,0.00166171]
[1731812770459,0.0328,90244.0,90220.0,0.11844921]
[1731812770460,0.15124921,90244.0,90220.0,0.11844921]
[1731812770759,0.15124921,90244.0,90222.0,0.05482936]
[1731812770760,0.3608,90230.0,90222.0,0.05482936]
[1731812770944,0.055387,90224.0,90222.0,0.05482936]
[1731812771145,0.3608,90230.0,90219.0,0.055389]
[1731812771351,0.055387,90224.0,90219.0,0.055389]
[1731812771557,0.055387,90224.0,90220.0,8.86e-05]
[1731812771854,0.055387,90223.0,90220.0,8.86e-05]
[1731812772358,0.3608,90230.0,90220.0,8.86e-05]
[1731812772546,0.055388,90222.0,90220.0,8.86e-05]
[1731812774460,0.3608,90221.0,90220.0,8.86e-05]
[1731812774759,0.424,90221.0,90220.0,8.86e-05]
[1731812777260,0.3608,90221.0,90220.0,8.86e-05]
[1731812777448,0.055388,90222.0,90220.0,0.0554776]
[1731812778052,0.41760206,90230.0,90220.0,8.86e-05]
[1731812778258,0.055385,90227.0,90224.0,0.055387]
[1731812778457,0.3608,90230.0,90224.0,0.055387]
[1731812778761,0.055386,90226.0,90224.0,0.055387]
[1731812779250,0.3608,90230.0,90228.0,0.055384]
[1731812779759,0.3608,90230.0,90220.0,8.86e-05]
[1731812779760,0.055381,90233.0,90229.0,0.055383]
[1731812781068,0.05590626,90235.0,90221.0,0.05496433]
[1731812781247,0.055388,90222.0,90220.0,8.86e-05]
[1731812781952,0.3608,90221.0,90220.0,8.86e-05]
[1731812783743,0.055388,90222.0,90220.0,8.86e-05]
[1731812783949,0.0324,90227.0,90222.0,0.055388]
[1731812784150,0.055387,90224.0,90222.0,0.055388]
[1731812784649,0.055388,90221.0,90220.0,8.86e-05]
[1731812794971,0.8813312,90221.0,90220.0,8.86e-05]
[1731812795169,0.055393,90214.0,90213.0,0.00166265]
[1731812795471,0.17384221,90214.0,90213.0,0.00166265]
[1731812796069,0.17396976,90214.0,90213.0,0.00166265]
[1731812796273,0.50652976,90214.0,90213.0,0.00166265]
[1731812796980,0.6391531,90214.0,90213.0,0.00166265]
[1731812797286,0.055397,90207.0,90206.0,8.04e-05]
[1731812797467,0.53464621,90207.0,90206.0,8.04e-05]
[1731812798782,0.53464621,90207.0,90189.0,0.26213094]
[1731812798983,0.055407,90191.0,90190.0,0.01350303]
[1731812799163,0.055409,90187.0,90183.0,0.00098]
[1731812799367,0.055409,90187.0,90184.0,0.01345951]
[1731812799577,0.47924921,90196.0,90185.0,0.01345951]
[1731812799781,0.055411,90184.0,90183.0,0.00098]
[1731812799980,0.055411,90184.0,90183.0,0.01434384]
[1731812800183,0.055411,90184.0,90183.0,0.01447127]
[1731812800863,0.417211,90184.0,90183.0,0.00410743]
[1731812801183,0.417211,90184.0,90183.0,0.00610743]
[1731812801387,0.516171,90184.0,90183.0,0.00610743]
[1731812801780,0.517171,90184.0,90183.0,0.00610743]
[1731812802078,0.055417,90175.0,90174.0,0.00166279]
[1731812802381,0.416217,90175.0,90174.0,0.00166279]
[1731812803280,0.416217,90175.0,90173.0,0.00010461]
[1731812803783,0.417217,90175.0,90173.0,0.00010461]
[1731812803972,0.418217,90175.0,90173.0,0.00010461]
[1731812804182,0.33268,90174.0,90173.0,0.00010461]
[1731812804683,0.33268,90174.0,90173.0,6.1e-07]
[1731812805773,0.33368,90174.0,90154.0,0.0052]
[1731812806075,0.33368,90174.0,90152.0,0.0307]
[1731812806076,0.3608,90157.0,90152.0,0.0307]
[1731812806778,0.05543,90153.0,90152.0,0.0307]
[1731812808678,0.05643,90153.0,90152.0,0.0307]
[1731812809980,0.05743,90153.0,90152.0,0.0307]
[1731812810379,0.002,90153.0,90152.0,0.0307]
[1731812810589,0.001,90153.0,90152.0,0.0307]
[1731812810891,0.001,90153.0,90152.0,0.36346]
[1731812810892,0.002,90153.0,90152.0,0.36346]
[1731812811292,0.3608,90175.0,90153.0,0.05543]
[1731812811491,0.416217,90175.0,90171.0,0.055419]
[1731812811788,0.3608,90175.0,90163.0,0.3608]
[1731812811980,0.3608,90175.0,90164.0,0.063]
[1731812812380,0.00166405,90176.0,90164.0,0.063]
[1731812812585,0.00166405,90176.0,90175.0,0.055417]
[1731812813594,0.00166405,90176.0,90175.0,0.49899186]
[1731812813777,0.3608,90187.0,90175.0,0.44357486]
[1731812813978,0.3608,90187.0,90185.0,0.05541]
[1731812814382,0.3608,90187.0,90186.0,0.0332]
[1731812814593,0.3608,90187.0,90186.0,0.0962]
[1731812814895,0.3618,90187.0,90186.0,0.0962]
[1731812815078,0.001,90187.0,90186.0,0.0962]
[1731812816192,0.001,90187.0,90186.0,0.20708134]
[1731812816490,0.001,90187.0,90186.0,0.26249134]
[1731812816696,0.002,90187.0,90186.0,0.26249134]
[1731812816896,0.001,90187.0,90186.0,0.26249134]
[1731812817077,0.002,90187.0,90186.0,0.26449134]
[1731812817583,0.002,90187.0,90186.0,0.26249134]
[1731812819500,0.002,90187.0,90186.0,0.0332]
[1731812819790,0.001,90187.0,90186.0,0.0332]
[1731812819995,0.002,90187.0,90186.0,0.0332]
[1731812820188,0.001,90187.0,90186.0,0.0332]
[1731812820382,0.002,90187.0,90186.0,0.0332]
[1731812820578,0.001,90187.0,90186.0,0.0332]
[1731812820783,0.002,90187.0,90186.0,0.0332]
[1731812821203,0.002,90187.0,90186.0,0.08861]
[1731812822198,0.001,90187.0,90186.0,0.08861]
[1731812822395,0.002,90187.0,90186.0,0.08861]
[1731812822984,0.001,90187.0,90186.0,0.0332]
[1731812823184,0.002,90187.0,90186.0,0.0332]
[1731812823380,0.002,90187.0,90186.0,0.0352]
[1731812823381,0.001,90187.0,90186.0,0.0352]
[1731812823586,0.002,90187.0,90186.0,0.0352]
[1731812823788,0.001,90187.0,90186.0,0.0352]
[1731812824007,0.002,90187.0,90186.0,0.0332]
[1731812826895,0.001,90187.0,90186.0,0.0332]
[1731812827108,0.002,90187.0,90186.0,0.0332]
[1731812827291,0.002,90187.0,90186.0,0.14408134]
[1731812827491,0.3608,90201.0,90186.0,0.5889734]
[1731812827692,0.3608,90201.0,90200.0,0.055401]
[1731812827893,0.00166348,90210.0,90199.0,0.3608]
[1731812828093,0.055397,90207.0,90204.0,0.055399]
[1731812828898,0.055398,90206.0,90204.0,0.055399]
[1731812830214,0.056398,90206.0,90204.0,0.055399]
[1731812831800,0.055398,90206.0,90204.0,0.055399]
[1731812833003,0.00166348,90210.0,90202.0,0.0554]
[1731812833205,0.00166348,90210.0,90208.0,0.055396]
[1731812836210,0.01052348,90210.0,90208.0,0.055396]
[1731812840710,0.01052348,90210.0,90202.0,0.0554]
[1731812841104,0.055399,90204.0,90203.0,0.055399]
[1731812841308,0.01052348,90210.0,90206.0,0.055398]
[1731812841309,0.06591948,90210.0,90206.0,0.055398]
[1731812841509,0.055397,90207.0,90206.0,0.055398]
[1731812841807,0.01052348,90210.0,90201.0,0.05480606]
[1731812842114,0.01052348,90210.0,90199.0,0.02336937]
[1731812842115,0.3608,90204.0,90199.0,0.02336937]
[1731812842303,0.055401,90202.0,90199.0,0.07757137]
[1731812842501,0.055401,90202.0,90200.0,0.055401]
[1731812842808,0.3608,90201.0,90200.0,0.055401]
[1731812843117,0.083111,90202.0,90200.0,0.06879566]
[1731812843319,0.083111,90202.0,90200.0,0.3309266]
[1731812843523,0.083111,90202.0,90201.0,0.01339466]
[1731812844102,0.083111,90202.0,90201.0,0.2755256]
[1731812844312,0.083111,90202.0,90200.0,0.31953194]
[1731812844511,0.083111,90202.0,90201.0,0.01337838]
[1731812847110,0.02771,90202.0,90201.0,0.01337838]
[1731812848214,0.02771,90202.0,90201.0,0.01537838]
[1731812848526,0.02871,90202.0,90201.0,0.01537838]
[1731812849524,0.02871,90202.0,90201.0,0.01737838]
[1731812849525,0.02971,90202.0,90201.0,0.01737838]
[1731812850224,0.39051,90202.0,90201.0,0.01737838]
[1731812850432,0.41941,90202.0,90201.0,0.01337838]
[1731812850623,0.05961,90202.0,90201.0,0.01537838]
[1731812851722,0.05861,90202.0,90201.0,0.01337838]
[1731812853724,0.05861,90202.0,90201.0,0.27593573]
[1731812853931,0.02771,90202.0,90201.0,0.27593573]
[1731812854525,0.02771,90202.0,90201.0,0.01337838]
[1731812859614,0.02771,90202.0,90195.0,0.26339242]
[1731812859615,0.14615921,90202.0,90195.0,0.26339242]
[1731812859816,0.055406,90192.0,90191.0,0.26339242]
[1731812860120,0.055406,90192.0,90191.0,0.01326355]
[1731812860323,0.055411,90185.0,90184.0,0.26339242]
[1731812860621,0.055411,90185.0,90184.0,0.01325458]
[1731812862320,0.056411,90185.0,90184.0,0.01525458]
[1731812862524,0.057411,90185.0,90184.0,0.01725458]
[1731812863918,0.057411,90185.0,90184.0,0.280647]
[1731812864233,0.057411,90185.0,90184.0,0.01725458]
[1731812865727,0.057411,90185.0,90184.0,0.280647]
[1731812866322,0.057411,90185.0,90184.0,0.01725458]
[1731812868128,0.085131,90185.0,90184.0,0.01725458]
[1731812868530,0.085131,90185.0,90184.0,0.280315]
[1731812869531,0.085131,90185.0,90184.0,0.01725458]
[1731812873038,0.085131,90185.0,90184.0,0.01725166]
[1731812873336,0.085131,90185.0,90184.0,0.004]
[1731812873636,0.14086276,90185.0,90184.0,0.004]
[1731812878229,0.27039197,90185.0,90170.0,0.19712917]
[1731812878543,0.05542,90170.0,90168.0,0.19722374]